[Event "FIDE WSTC Open 50 2025"]
[Site "Prague"]
[Date "2025.02.17"]
[Round "1.9"]
[White "Lauterbach, Ingrid"]
[Black "Hjartarson, Johann"]
[Result "0-1"]
[Annotator "ChessBase"]
[ECO "B40"]
[WhiteElo "2003"]
[BlackElo "2464"]
[PlyCount "78"]
[EventDate "2025.02.17"]
[EventType "team-tourn"]
[EventCountry "CZE"]
[SourceTitle "playchess.com"]
[Source "ChessBase"]
[SourceQuality "1"]
[TimeControl "40/5400+30:1800+30"]

1. e4 {[%emt 0:00:02]} c5 {[%emt 0:00:13]} 2. Nf3 {[%emt 0:00:10]} e6 {[%emt 0:00:07]} 3. g3 {[%emt 0:01:21]} Nc6 {[%emt 0:00:17]} 4. Bg2 {[%emt 0:01:05]} Nf6 {[%emt 0:00:21]} 5. d3 {[%emt 0:01:43]} d5 {[%emt 0:03:36]} 6. Nbd2 {[%emt 0:00:12]} Be7 {[%emt 0:00:12]} 7. O-O {[%emt 0:01:22]} b6 {[%emt 0:00:38]} 8. Re1 {[%emt 0:01:04]} Bb7 {[%emt 0:00:39]} 9. c3 {[%emt 0:07:59]} h6 {[%emt 0:01:49]} 10. Qc2 {[%emt 0:10:10]} O-O {[%emt 0:02:17]} 11. exd5 {[%emt 0:06:09]} Nxd5 {[%emt 0:00:22]} 12. Nf1 {[%emt 0:01:14]} Qc7 {[%emt 0:03:33]} 13. Ne3 {[%emt 0:00:59]} Nf6 {[%emt 0:01:03]} 14. Nc4 {[%emt 0:05:07]} Rad8 {[%emt 0:00:18]} 15. Bf4 {[%emt 0:07:13]} Qc8 {[%emt 0:00:34]} 16. h3 {[%emt 0:04:41]} b5 {[%emt 0:07:53]} 17. Nce5 {[%emt 0:02:15]} Qa8 {[%emt 0:01:07]} 18. Nxc6 {[%emt 0:04:42]} Bxc6 {[%emt 0:00:08]} 19. Qe2 {[%emt 0:00:33]} Rfe8 {[%emt 0:10:07]} 20. Red1 {[%emt 0:05:55]} Bf8 {[%emt 0:02:35]} 21. Ne1 {[%emt 0:03:43]} e5 {[%emt 0:05:17]} 22. Bxc6 {[%emt 0:02:43]} Qxc6 {[%emt 0:00:08]} 23. Be3 {[%emt 0:02:27]} a6 {[%emt 0:00:57]} 24. Qf3 {[%emt 0:08:04]} Qe6 {[%emt 0:00:37]} 25. Kh2 {[%emt 0:01:15]} Rd7 {[%emt 0:03:55]} 26. a4 {[%emt 0:04:47]} Red8 {[%emt 0:04:04]} 27. axb5 {[%emt 0:02:07]} axb5 {[%emt 0:00:07]} 28. Qe2 {[%emt 0:01:23]} Nd5 {[%emt 0:03:19]} 29. Bd2 {[%emt 0:01:56]} Nc7 {[%emt 0:06:42]} 30. Be3 {[%emt 0:02:19]} Qd5 {[%emt 0:13:33]} 31. f3 {[%emt 0:01:10]} Ne6 {[%emt 0:02:04]} 32. Kg2 {[%emt 0:02:31]} h5 {[%emt 0:02:50]} 33. Bf2 {[%emt 0:04:07]} h4 {[%emt 0:01:55]} 34. Qe4 {[%emt 0:01:48]} c4 {[%emt 0:01:20]} 35. Qxh4 {[%emt 0:01:26]} cxd3 {[%emt 0:05:19]} 36. Rxd3 {[%emt 0:01:23]} Qb3 {[%emt 0:00:47]} 37. Rxd7 {[%emt 0:00:31]} Rxd7 {[%emt 0:00:08]} 38. Qe4 {[%emt 0:00:49]} Rd2 {[%emt 0:01:24]} 39. Nd3 {[%emt 0:00:48]} Qc2 {[%emt 0:00:28]} 0-1

[Event "FIDE WSTC Open 50 2025"]
[Site "Prague"]
[Date "2025.02.17"]
[Round "1.10"]
[White "Petursson, Margeir"]
[Black "Jackson, Sheila"]
[Result "1-0"]
[Annotator "ChessBase"]
[ECO "A11"]
[WhiteElo "2403"]
[BlackElo "2009"]
[PlyCount "85"]
[EventDate "2025.02.17"]
[EventType "team-tourn"]
[EventCountry "CZE"]
[SourceTitle "playchess.com"]
[Source "ChessBase"]
[SourceQuality "1"]
[TimeControl "40/5400+30:1800+30"]

1. c4 {[%emt 0:00:07]} c6 {[%emt 0:00:14]} 2. Nf3 {[%emt 0:01:19]} Nf6 {[%emt 0:03:10]} 3. Nc3 {[%emt 0:01:19]} d5 {[%emt 0:00:50]} 4. e3 {[%emt 0:01:06]} e6 {[%emt 0:07:28]} 5. b3 {[%emt 0:00:51]} Bd6 {[%emt 0:01:47]} 6. Bb2 {[%emt 0:01:29]} O-O {[%emt 0:02:57]} 7. Be2 {[%emt 0:05:20]} Qe7 {[%emt 0:05:06]} 8. O-O {[%emt 0:05:10]} Nbd7 {[%emt 0:01:35]} 9. Qc2 {[%emt 0:05:07]} a6 {[%emt 0:01:57]} 10. d4 {[%emt 0:03:23]} e5 {[%emt 0:11:44]} 11. dxe5 {[%emt 0:03:35]} Nxe5 {[%emt 0:01:45]} 12. cxd5 cxd5 {[%emt 0:05:45]} 13. Rad1 {[%emt 0:03:20]} Be6 {[%emt 0:02:03]} 14. Nd4 {[%emt 0:09:19]} g6 {[%emt 0:00:57]} 15. Qd2 {[%emt 0:11:11]} Rad8 {[%emt 0:04:34]} 16. Nxe6 {[%emt 0:08:04]} fxe6 {[%emt 0:00:37]} 17. Qd4 {[%emt 0:02:32]} Nc6 {[%emt 0:06:33]} 18. Qa4 {[%emt 0:02:36]} Rc8 {[%emt 0:00:51]} 19. a3 {[%emt 0:04:03]} Nd7 {[%emt 0:05:34]} 20. Qg4 {[%emt 0:03:05]} Rf5 {[%emt 0:02:53]} 21. Qh3 {[%emt 0:03:40]} Rf7 {[%emt 0:05:08]} 22. Bg4 {[%emt 0:04:21]} Re8 {[%emt 0:00:33]} 23. Rxd5 {[%emt 0:01:11]} Nf6 {[%emt 0:01:55]} 24. Rdd1 {[%emt 0:02:08]} Ne5 {[%emt 0:06:59]} 25. Be2 {[%emt 0:00:42]} Bxa3 {[%emt 0:00:22]} 26. Ba1 {[%emt 0:00:09]} Ned7 {[%emt 0:01:34]} 27. Bd3 {[%emt 0:05:27]} Nc5 {[%emt 0:01:08]} 28. Bc2 {[%emt 0:00:23]} Ncd7 {[%emt 0:04:44]} 29. Ne2 {[%emt 0:01:15]} Bd6 {[%emt 0:03:00]} 30. Nd4 {[%emt 0:02:11]} Ne5 {[%emt 0:02:56]} 31. b4 {[%emt 0:00:59]} b5 {[%emt 0:01:57]} 32. Rb1 {[%emt 0:04:01]} Nc4 {[%emt 0:00:57]} 33. Bb3 {[%emt 0:02:00]} Nd5 {[%emt 0:02:38]} 34. Rfd1 {[%emt 0:01:28]} Nxb4 {[%emt 0:01:13]} 35. Qg4 {[%emt 0:01:39]} Bc5 {[%emt 0:02:50]} 36. h4 {[%emt 0:01:00]} Qf6 {[%emt 0:00:56]} 37. Nf3 {[%emt 0:00:40]} Qf5 {[%emt 0:00:19]} 38. Qg3 {[%emt 0:01:30]} Nd5 {[%emt 0:00:16]} 39. Rbc1 {[%emt 0:01:20]} Bxe3 {[%emt 0:00:16]} 40. fxe3 {[%emt 0:00:33]} Ncxe3 {[%emt 0:00:23]} 41. Re1 {[%emt 0:30:55]} Ref8 {[%emt 0:03:34]} 42. Qe5 {[%emt 0:00:00]} Qxe5 {[%emt 0:02:55]} 43. Nxe5 {[%emt 0:00:00]} 1-0

[Event "FIDE WSTC Open 50 2025"]
[Site "Prague"]
[Date "2025.02.17"]
[Round "1.11"]
[White "Fink-Nunn, Petra"]
[Black "Thorhallsson, Throstur"]
[Result "1/2-1/2"]
[Annotator "ChessBase"]
[ECO "B57"]
[WhiteElo "2003"]
[BlackElo "2394"]
[PlyCount "77"]
[EventDate "2025.02.17"]
[EventType "team-tourn"]
[EventCountry "CZE"]
[SourceTitle "playchess.com"]
[Source "ChessBase"]
[SourceQuality "1"]
[TimeControl "40/5400+30:1800+30"]

1. e4 {[%emt 0:00:04]} c5 {[%emt 0:00:16]} 2. Nf3 {[%emt 0:00:12]} Nc6 {[%emt 0:00:48]} 3. d4 {[%emt 0:00:19]} cxd4 {[%emt 0:00:08]} 4. Nxd4 {[%emt 0:00:07]} Nf6 {[%emt 0:00:23]} 5. Nc3 {[%emt 0:00:24]} d6 {[%emt 0:00:17]} 6. Bc4 {[%emt 0:00:29]} Qb6 {[%emt 0:00:45]} 7. Nxc6 {[%emt 0:01:13]} bxc6 {[%emt 0:00:26]} 8. b3 {[%emt 0:00:45]} g6 {[%emt 0:07:03]} 9. O-O {[%emt 0:01:12]} Bg7 {[%emt 0:00:16]} 10. Na4 {[%emt 0:00:23]} Qc7 {[%emt 0:02:01]} 11. Bb2 {[%emt 0:00:14]} O-O {[%emt 0:02:01]} 12. Re1 {[%emt 0:00:39]} e5 {[%emt 0:04:55]} 13. Bf1 {[%emt 0:08:43]} Be6 {[%emt 0:07:40]} 14. c4 {[%emt 0:04:59]} Rad8 {[%emt 0:02:56]} 15. Qd2 {[%emt 0:22:46]} Nh5 {[%emt 0:15:44]} 16. Nc3 {[%emt 0:15:56]} f5 {[%emt 0:04:49]} 17. Rad1 {[%emt 0:12:22]} Rfe8 {[%emt 0:05:26]} 18. Ba3 {[%emt 0:06:44]} Bf8 {[%emt 0:02:07]} 19. Qc2 {[%emt 0:09:04]} Nf6 {[%emt 0:04:18]} 20. exf5 Bxf5 {[%emt 0:03:02]} 21. Qe2 {[%emt 0:07:34]} Qa5 {[%emt 0:08:46]} 22. Qb2 {[%emt 0:01:19]} d5 {[%emt 0:11:51]} 23. Bxf8 {[%emt 0:01:16]} Kxf8 {[%emt 0:00:04]} 24. cxd5 {[%emt 0:00:51]} cxd5 {[%emt 0:00:13]} 25. b4 {[%emt 0:01:07]} Qb6 {[%emt 0:01:37]} 26. Na4 {[%emt 0:00:48]} Qb8 {[%emt 0:03:21]} 27. f4 {[%emt 0:00:23]} d4 {[%emt 0:06:27]} 28. Nc5 {[%emt 0:02:19]} Kg7 {[%emt 0:00:45]} 29. fxe5 {[%emt 0:00:31]} Rxe5 {[%emt 0:00:07]} 30. Rxe5 {[%emt 0:00:21]} Qxe5 {[%emt 0:00:02]} 31. Qe2 {[%emt 0:00:11]} Ng4 {[%emt 0:03:09]} 32. Qxe5+ {[%emt 0:01:01]} Nxe5 {[%emt 0:00:02]} 33. Bd3 {[%emt 0:01:28]} Nxd3 {[%emt 0:02:11]} 34. Nxd3 {[%emt 0:00:01]} Kf6 {[%emt 0:02:26]} 35. Kf2 {[%emt 0:00:08]} Bxd3 {[%emt 0:00:49]} 36. Rxd3 {[%emt 0:00:01]} Ke5 {[%emt 0:00:07]} 37. Ke2 {[%emt 0:01:43]} Ke4 {[%emt 0:00:33]} 38. Rh3 {[%emt 0:00:36]} Rc8 {[%emt 0:01:00]} 39. Ke1 1/2-1/2

[Event "FIDE WSTC Open 50 2025"]
[Site "Prague"]
[Date "2025.02.17"]
[Round "1.12"]
[White "Arnason, Jon L"]
[Black "Frostick, Helen M"]
[Result "1-0"]
[Annotator "ChessBase"]
[ECO "B18"]
[WhiteElo "2405"]
[BlackElo "1880"]
[PlyCount "53"]
[EventDate "2025.02.17"]
[EventType "team-tourn"]
[EventCountry "CZE"]
[SourceTitle "playchess.com"]
[Source "ChessBase"]
[SourceQuality "1"]
[TimeControl "40/5400+30:1800+30"]

1. e4 {[%emt 0:00:08]} c6 {[%emt 0:00:17]} 2. d4 {[%emt 0:00:10]} d5 {[%emt 0:00:09]} 3. Nd2 {[%emt 0:00:28]} dxe4 {[%emt 0:00:17]} 4. Nxe4 {[%emt 0:00:06]} Bf5 {[%emt 0:00:36]} 5. Ng3 {[%emt 0:01:58]} Bg6 {[%emt 0:00:23]} 6. h4 {[%emt 0:00:10]} h6 {[%emt 0:00:20]} 7. Be3 {[%emt 0:02:37]} e6 {[%emt 0:07:40]} 8. Bd3 {[%emt 0:04:30]} Bxd3 {[%emt 0:00:41]} 9. Qxd3 {[%emt 0:00:05]} Nd7 {[%emt 0:01:03]} 10. O-O-O {[%emt 0:04:12]} Ngf6 {[%emt 0:02:57]} 11. N1e2 {[%emt 0:02:18]} Qa5 {[%emt 0:04:52]} 12. Kb1 {[%emt 0:01:40]} Rd8 {[%emt 0:12:21]} 13. c4 {[%emt 0:22:41]} b5 {[%emt 0:16:21]} 14. Qc2 {[%emt 0:01:07]} bxc4 {[%emt 0:04:37]} 15. Qxc4 {[%emt 0:01:31]} Qb5 {[%emt 0:03:58]} 16. Rc1 {[%emt 0:01:53]} Rb8 {[%emt 0:10:48]} 17. Rc2 {[%emt 0:12:00]} Ba3 {[%emt 0:02:46]} 18. Qxb5 {[%emt 0:01:39]} Rxb5 {[%emt 0:00:26]} 19. Ka1 {[%emt 0:00:54]} Bb4 {[%emt 0:05:28]} 20. Rxc6 {[%emt 0:00:55]} O-O {[%emt 0:03:44]} 21. Rhc1 {[%emt 0:02:26]} Nd5 {[%emt 0:02:40]} 22. Ne4 {[%emt 0:04:52]} Nxe3 {[%emt 0:15:15]} 23. fxe3 {[%emt 0:00:07]} Nb6 {[%emt 0:01:24]} 24. a3 {[%emt 0:15:12]} Be7 {[%emt 0:00:42]} 25. g3 {[%emt 0:00:09]} Nd5 {[%emt 0:00:15]} 26. N2c3 {[%emt 0:00:59]} a5 {[%emt 0:01:47]} 27. Nxb5 {[%emt 0:00:06]} 1-0

[Event "FIDE WSTC Open 50 2025"]
[Site "Prague"]
[Date "2025.02.17"]
[Round "1.13"]
[White "David, Alberto"]
[Black "Perez Pastora, Evarist"]
[Result "1/2-1/2"]
[Annotator "ChessBase"]
[ECO "D31"]
[WhiteElo "2467"]
[BlackElo "2075"]
[PlyCount "138"]
[EventDate "2025.02.17"]
[EventType "team-tourn"]
[EventCountry "CZE"]
[SourceTitle "playchess.com"]
[Source "ChessBase"]
[SourceQuality "1"]
[TimeControl "40/5400+30:1800+30"]

1. d4 {[%emt 0:00:13]} d5 {[%emt 0:00:25]} 2. c4 {[%emt 0:00:15]} e6 {[%emt 0:00:06]} 3. Nc3 {[%emt 0:00:09]} a6 {[%emt 0:00:15]} 4. cxd5 {[%emt 0:00:31]} exd5 {[%emt 0:00:08]} 5. Bf4 {[%emt 0:00:30]} Nf6 {[%emt 0:01:02]} 6. e3 {[%emt 0:02:34]} Bd6 {[%emt 0:01:31]} 7. Bxd6 {[%emt 0:01:16]} Qxd6 {[%emt 0:00:10]} 8. Bd3 {[%emt 0:00:57]} O-O {[%emt 0:01:46]} 9. Nge2 {[%emt 0:01:28]} Re8 {[%emt 0:05:26]} 10. O-O {[%emt 0:05:49]} Nbd7 {[%emt 0:10:41]} 11. Ng3 {[%emt 0:04:39]} Nf8 {[%emt 0:05:25]} 12. Qd2 {[%emt 0:02:19]} Ne6 {[%emt 0:09:46]} 13. Rad1 {[%emt 0:06:01]} Bd7 {[%emt 0:09:09]} 14. Bc2 {[%emt 0:09:46]} b5 {[%emt 0:10:39]} 15. Nce2 {[%emt 0:05:40]} b4 {[%emt 0:07:15]} 16. f3 {[%emt 0:10:23]} c5 {[%emt 0:06:18]} 17. Nf5 {[%emt 0:07:05]} Qb6 {[%emt 0:00:21]} 18. dxc5 {[%emt 0:00:45]} Nxc5 {[%emt 0:01:54]} 19. Ned4 {[%emt 0:04:47]} g6 {[%emt 0:07:49]} 20. Ng3 {[%emt 0:00:17]} Re7 {[%emt 0:01:20]} 21. Rfe1 {[%emt 0:02:19]} Rae8 {[%emt 0:00:25]} 22. Qf2 {[%emt 0:01:41]} a5 {[%emt 0:03:17]} 23. Bb1 {[%emt 0:01:20]} a4 {[%emt 0:02:28]} 24. Rc1 {[%emt 0:00:20]} Ne6 {[%emt 0:01:05]} 25. Nge2 {[%emt 0:00:23]} Kg7 {[%emt 0:00:42]} 26. h3 {[%emt 0:04:25]} Bb5 {[%emt 0:00:57]} 27. e4 {[%emt 0:10:52]} Nxd4 {[%emt 0:04:41]} 28. Nxd4 {[%emt 0:00:04]} Qb8 {[%emt 0:00:24]} 29. exd5 {[%emt 0:09:20]} Rxe1+ {[%emt 0:03:22]} 30. Rxe1 {[%emt 0:00:04]} Rxe1+ {[%emt 0:00:07]} 31. Qxe1 {[%emt 0:00:04]} Nxd5 {[%emt 0:00:12]} 32. Be4 {[%emt 0:04:18]} Qd6 {[%emt 0:03:04]} 33. Bxd5 {[%emt 0:03:45]} Qxd5 {[%emt 0:00:19]} 34. Qxb4 {[%emt 0:00:16]} Bd7 {[%emt 0:00:07]} 35. Qc3 {[%emt 0:00:45]} Kg8 {[%emt 0:00:10]} 36. b3 {[%emt 0:00:24]} h5 {[%emt 0:02:37]} 37. Qe3 {[%emt 0:01:42]} a3 {[%emt 0:01:33]} 38. Kf2 {[%emt 0:00:30]} Qc5 {[%emt 0:01:21]} 39. h4 {[%emt 0:01:10]} Bc8 {[%emt 0:00:45]} 40. Kg3 {[%emt 0:00:27]} Bd7 {[%emt 0:00:09]} 41. Kf2 {[%emt 0:30:27]} Bc8 {[%emt 0:30:04]} 42. Kg3 {[%emt 0:00:00]} Bd7 {[%emt 0:00:00]} 43. f4 {[%emt 0:00:00]} Qc7 {[%emt 0:00:00]} 44. Nf3 {[%emt 0:00:00]} Be6 {[%emt 0:00:00]} 45. b4 {[%emt 0:00:00]} Bxa2 {[%emt 0:00:00]} 46. Qxa3 {[%emt 0:00:00]} Bd5 {[%emt 0:00:00]} 47. Qa5 {[%emt 0:00:00]} Qb7 {[%emt 0:00:00]} 48. Qd8+ {[%emt 0:00:00]} Kg7 {[%emt 0:00:00]} 49. Qd6 {[%emt 0:00:00]} Kg8 {[%emt 0:00:00]} 50. Qc5 {[%emt 0:00:40]} Bc6 {[%emt 0:00:00]} 51. f5 {[%emt 0:02:16]} Qb8+ {[%emt 0:01:42]} 52. Kf2 {[%emt 0:00:54]} Bxf3 {[%emt 0:00:30]} 53. Kxf3 {[%emt 0:00:03]} Qa8+ {[%emt 0:00:06]} 54. Kf2 {[%emt 0:01:15]} Qe4 {[%emt 0:02:44]} 55. Qc8+ {[%emt 0:02:04]} Kg7 {[%emt 0:00:12]} 56. Qc3+ {[%emt 0:00:06]} Kg8 {[%emt 0:00:12]} 57. fxg6 {[%emt 0:00:43]} Qxh4+ {[%emt 0:01:18]} 58. Kg1 {[%emt 0:00:04]} fxg6 {[%emt 0:00:16]} 59. b5 {[%emt 0:00:18]} Qe4 {[%emt 0:01:14]} 60. Qc8+ {[%emt 0:00:39]} Kh7 {[%emt 0:00:24]} 61. Qc7+ {[%emt 0:00:45]} Kh6 {[%emt 0:00:54]} 62. Qc1+ {[%emt 0:00:19]} Kh7 {[%emt 0:00:06]} 63. Qg5 {[%emt 0:01:00]} Kg7 {[%emt 0:01:49]} 64. Kh2 {[%emt 0:00:07]} Qd4 {[%emt 0:00:36]} 65. Qg3 {[%emt 0:01:05]} Kh6 {[%emt 0:00:29]} 66. Qb3 {[%emt 0:00:39]} Qh4+ {[%emt 0:00:16]} 67. Kg1 {[%emt 0:00:04]} Qe1+ {[%emt 0:00:04]} 68. Kh2 {[%emt 0:00:03]} Qh4+ {[%emt 0:00:05]} 69. Kg1 {[%emt 0:00:02]} Qe1+ {[%emt 0:00:06]} 1/2-1/2

[Event "FIDE WSTC Open 50 2025"]
[Site "Prague"]
[Date "2025.02.17"]
[Round "1.14"]
[White "Gardela Batlle, Jordi"]
[Black "Bellini, Fabio"]
[Result "1/2-1/2"]
[Annotator "ChessBase"]
[ECO "D50"]
[WhiteElo "2035"]
[BlackElo "2408"]
[PlyCount "79"]
[EventDate "2025.02.17"]
[EventType "team-tourn"]
[EventCountry "CZE"]
[SourceTitle "playchess.com"]
[Source "ChessBase"]
[SourceQuality "1"]
[TimeControl "40/5400+30:1800+30"]

1. d4 {[%emt 0:00:06]} d5 {[%emt 0:00:14]} 2. c4 {[%emt 0:00:16]} e6 {[%emt 0:00:07]} 3. Nc3 {[%emt 0:01:27]} Nf6 {[%emt 0:00:09]} 4. Bg5 {[%emt 0:02:13]} dxc4 {[%emt 0:00:49]} 5. e3 {[%emt 0:12:46]} c5 {[%emt 0:01:03]} 6. Bxc4 {[%emt 0:07:02]} a6 {[%emt 0:05:57]} 7. Nf3 {[%emt 0:16:32]} b5 {[%emt 0:01:47]} 8. Be2 {[%emt 0:03:28]} Bb7 {[%emt 0:01:43]} 9. O-O {[%emt 0:01:44]} Nbd7 {[%emt 0:00:52]} 10. Qb3 {[%emt 0:08:49]} Rc8 {[%emt 0:10:32]} 11. a3 {[%emt 0:06:59]} h6 {[%emt 0:07:02]} 12. Bh4 {[%emt 0:01:30]} Qb6 {[%emt 0:03:20]} 13. Rfd1 {[%emt 0:03:18]} cxd4 {[%emt 0:06:09]} 14. Rxd4 {[%emt 0:07:06]} Bc5 {[%emt 0:08:39]} 15. Rd2 {[%emt 0:02:23]} Be7 {[%emt 0:02:14]} 16. Qd1 {[%emt 0:06:10]} Nc5 {[%emt 0:02:02]} 17. b4 {[%emt 0:07:55]} Nce4 {[%emt 0:06:01]} 18. Nxe4 {[%emt 0:00:04]} Nxe4 {[%emt 0:00:11]} 19. Rc2 {[%emt 0:03:54]} Nc3 {[%emt 0:08:38]} 20. Qd2 {[%emt 0:02:41]} Bxh4 {[%emt 0:03:52]} 21. Rxc3 {[%emt 0:02:13]} Rxc3 {[%emt 0:00:31]} 22. Qxc3 {[%emt 0:00:34]} Bf6 {[%emt 0:00:12]} 23. Nd4 {[%emt 0:00:24]} O-O {[%emt 0:00:29]} 24. Rd1 {[%emt 0:01:02]} Rc8 {[%emt 0:01:15]} 25. Qe1 {[%emt 0:00:53]} g6 {[%emt 0:01:28]} 26. h3 {[%emt 0:01:13]} Kg7 {[%emt 0:01:08]} 27. Bf3 {[%emt 0:00:40]} Bxf3 {[%emt 0:03:19]} 28. gxf3 {[%emt 0:00:02]} Rc4 {[%emt 0:00:50]} 29. Nb3 {[%emt 0:00:28]} Rc3 {[%emt 0:01:11]} 30. Nc5 {[%emt 0:00:16]} Rxa3 {[%emt 0:01:42]} 31. Ne4 {[%emt 0:00:49]} Be5 {[%emt 0:02:09]} 32. Kg2 {[%emt 0:00:40]} Ra2 {[%emt 0:01:33]} 33. Rd7 {[%emt 0:00:18]} Qc6 {[%emt 0:03:08]} 34. Qd1 {[%emt 0:00:01]} g5 {[%emt 0:01:12]} 35. Qd3 {[%emt 0:00:46]} Qc4 {[%emt 0:05:12]} 36. Rxf7+ {[%emt 0:00:29]} Kxf7 {[%emt 0:06:45]} 37. Qd7+ {[%emt 0:00:02]} Kg8 {[%emt 0:02:10]} 38. Qe8+ {[%emt 0:00:14]} Kg7 {[%emt 0:00:05]} 39. Qe7+ {[%emt 0:00:09]} Kg8 {[%emt 0:00:50]} 40. Qe8+ {[%emt 0:00:03]} 1/2-1/2

[Event "FIDE WSTC Open 50 2025"]
[Site "Prague"]
[Date "2025.02.17"]
[Round "1.15"]
[White "Bellia, Fabrizio"]
[Black "Tornay Gomez, Josu"]
[Result "1-0"]
[Annotator "ChessBase"]
[ECO "C78"]
[WhiteElo "2393"]
[BlackElo "1995"]
[PlyCount "79"]
[EventDate "2025.02.17"]
[EventType "team-tourn"]
[EventCountry "CZE"]
[SourceTitle "playchess.com"]
[Source "ChessBase"]
[SourceQuality "1"]
[TimeControl "40/5400+30:1800+30"]

1. e4 {[%emt 0:00:06]} e5 {[%emt 0:00:04]} 2. Nf3 {[%emt 0:00:06]} Nc6 {[%emt 0:00:04]} 3. Bb5 {[%emt 0:00:04]} a6 {[%emt 0:00:03]} 4. Ba4 {[%emt 0:00:07]} Nf6 {[%emt 0:00:04]} 5. O-O {[%emt 0:00:09]} Bc5 {[%emt 0:00:06]} 6. c3 {[%emt 0:01:22]} b5 {[%emt 0:00:05]} 7. Bb3 {[%emt 0:00:31]} d6 {[%emt 0:00:08]} 8. d4 {[%emt 0:00:31]} Bb6 {[%emt 0:00:06]} 9. h3 {[%emt 0:00:42]} O-O {[%emt 0:00:23]} 10. Re1 {[%emt 0:00:25]} Bb7 {[%emt 0:03:23]} 11. a4 {[%emt 0:17:13]} h6 {[%emt 0:05:58]} 12. Be3 {[%emt 0:10:18]} Nxe4 {[%emt 0:11:50]} 13. d5 {[%emt 0:00:58]} Bxe3 {[%emt 0:00:09]} 14. Rxe3 {[%emt 0:00:26]} Nxf2 {[%emt 0:02:45]} 15. Kxf2 {[%emt 0:00:36]} Ne7 {[%emt 0:00:36]} 16. Kg1 {[%emt 0:07:36]} Ng6 {[%emt 0:01:57]} 17. Nbd2 {[%emt 0:08:08]} Nf4 {[%emt 0:00:40]} 18. Nf1 {[%emt 0:00:31]} Qf6 {[%emt 0:00:33]} 19. N3h2 {[%emt 0:08:07]} Rac8 {[%emt 0:05:54]} 20. axb5 {[%emt 0:02:17]} axb5 {[%emt 0:01:19]} 21. Ra7 {[%emt 0:01:05]} Ba8 {[%emt 0:05:19]} 22. Rg3 {[%emt 0:01:44]} Qh4 {[%emt 0:20:28]} 23. Rg4 {[%emt 0:09:17]} Qe7 {[%emt 0:00:30]} 24. Ne3 {[%emt 0:01:34]} f5 {[%emt 0:01:54]} 25. Rg3 {[%emt 0:00:05]} Qh4 {[%emt 0:01:02]} 26. Nhf1 {[%emt 0:01:37]} Nh5 {[%emt 0:06:59]} 27. Rg6 {[%emt 0:01:02]} Nf4 {[%emt 0:01:03]} 28. g3 {[%emt 0:02:59]} Nxh3+ {[%emt 0:05:41]} 29. Kh2 {[%emt 0:02:56]} Qe4 {[%emt 0:04:42]} 30. Bc2 {[%emt 0:01:24]} Nf2 {[%emt 0:00:37]} 31. Bxe4 {[%emt 0:00:07]} Nxd1 {[%emt 0:00:06]} 32. Bxf5 {[%emt 0:00:20]} Nxe3 {[%emt 0:03:21]} 33. Nxe3 {[%emt 0:00:08]} Rce8 {[%emt 0:03:44]} 34. Rxc7 {[%emt 0:01:05]} Rf7 {[%emt 0:00:29]} 35. Be6 {[%emt 0:01:54]} Rxe6 {[%emt 0:00:17]} 36. Rc8+ {[%emt 0:00:05]} Kh7 {[%emt 0:00:35]} 37. Rxe6 {[%emt 0:00:38]} Rf2+ {[%emt 0:00:50]} 38. Kg1 {[%emt 0:00:25]} Re2 {[%emt 0:01:09]} 39. Rxa8 {[%emt 0:00:36]} Rxe3 {[%emt 0:00:08]} 40. Kf2 {[%emt 0:00:25]} 1-0

[Event "FIDE WSTC Open 50 2025"]
[Site "Prague"]
[Date "2025.02.17"]
[Round "1.16"]
[White "Marin Aso, Jose Luis"]
[Black "D'Amore, Carlo"]
[Result "0-1"]
[Annotator "ChessBase"]
[ECO "B06"]
[WhiteElo "1948"]
[BlackElo "2362"]
[PlyCount "77"]
[EventDate "2025.02.17"]
[EventType "team-tourn"]
[EventCountry "CZE"]
[SourceTitle "playchess.com"]
[Source "ChessBase"]
[SourceQuality "1"]
[TimeControl "40/5400+30:1800+30"]

1. e4 {[%emt 0:00:03]} g6 {[%emt 0:00:29]} 2. d4 {[%emt 0:00:17]} Bg7 {[%emt 0:00:09]} 3. Nc3 {[%emt 0:00:14]} d6 {[%emt 0:00:30]} 4. f4 {[%emt 0:00:28]} a6 {[%emt 0:02:29]} 5. Nf3 {[%emt 0:00:40]} b5 {[%emt 0:01:45]} 6. Bd3 {[%emt 0:02:33]} Bb7 {[%emt 0:02:09]} 7. O-O {[%emt 0:04:02]} Nd7 {[%emt 0:07:10]} 8. a4 {[%emt 0:20:54]} c5 {[%emt 0:16:23]} 9. axb5 {[%emt 0:08:59]} cxd4 {[%emt 0:00:09]} 10. Ne2 {[%emt 0:01:33]} Qb6 {[%emt 0:12:46]} 11. Bd2 {[%emt 0:07:52]} Ngf6 {[%emt 0:03:54]} 12. Ba5 {[%emt 0:22:08]} Qa7 {[%emt 0:04:39]} 13. e5 {[%emt 0:09:36]} Ng4 {[%emt 0:02:59]} 14. bxa6 {[%emt 0:10:12]} Bxa6 {[%emt 0:17:03]} 15. Bd2 {[%emt 0:06:09]} Qb6 {[%emt 0:05:51]} 16. Qc1 {[%emt 0:01:48]} dxe5 {[%emt 0:04:17]} 17. fxe5 {[%emt 0:00:10]} O-O {[%emt 0:06:00]} 18. Ng3 {[%emt 0:01:16]} Bxd3 {[%emt 0:03:35]} 19. cxd3 {[%emt 0:00:09]} Rxa1 {[%emt 0:03:18]} 20. Qxa1 {[%emt 0:00:01]} Ngxe5 {[%emt 0:00:09]} 21. Qa3 {[%emt 0:00:25]} Nxf3+ {[%emt 0:00:17]} 22. Rxf3 {[%emt 0:00:06]} Ne5 {[%emt 0:00:14]} 23. Rf1 {[%emt 0:00:33]} Qb7 {[%emt 0:00:17]} 24. Ra1 {[%emt 0:01:03]} h5 {[%emt 0:00:17]} 25. Ne4 {[%emt 0:00:56]} Qb5 {[%emt 0:01:56]} 26. Qxe7 {[%emt 0:00:52]} Qxd3 {[%emt 0:00:45]} 27. Nf6+ {[%emt 0:00:09]} Bxf6 {[%emt 0:01:17]} 28. Qxf6 {[%emt 0:00:02]} Qxd2 {[%emt 0:00:49]} 29. Qxe5 {[%emt 0:00:04]} Rc8 {[%emt 0:00:45]} 30. b3 {[%emt 0:01:26]} Rc1+ {[%emt 0:01:14]} 31. Rxc1 {[%emt 0:00:06]} Qxc1+ {[%emt 0:00:04]} 32. Kf2 {[%emt 0:00:01]} d3 {[%emt 0:00:24]} 33. Qe8+ {[%emt 0:00:33]} Kg7 {[%emt 0:00:06]} 34. Qe5+ {[%emt 0:00:27]} Kh7 {[%emt 0:00:40]} 35. Qd5 {[%emt 0:01:21]} Qd2+ {[%emt 0:00:22]} 36. Kg3 {[%emt 0:00:35]} Qe1+ {[%emt 0:00:58]} 37. Kf3 {[%emt 0:00:37]} Qe2+ {[%emt 0:00:38]} 38. Kf4 {[%emt 0:00:00]} Qf2+ {[%emt 0:00:00]} 39. Qf3 0-1